Cogmind - Beta 15 @@@ ROGUE MODE // 2025.10.17 @ 19:51:14 Player: Hidden Result: Destroyed by D-53 Grenadier with Mini Grenade Launcher Performance ------------- Evolutions (0) 0 Regions Visited (2) 400 Robots Destroyed (10) 50 Value Destroyed (162) 162 Prototype IDs (3) 60 Alien Tech Used (0) 0 Bonus (0) 0 TOTAL SCORE: 672 Bonus ------- None Cogmind --------- Core Integrity 0/250 Matter 300/300 Energy 100/100 System Corruption 0% Temperature Cool (0) Movement Core (100) Ox1 Location -10/Mines Parts ------- > --- POWER (1) -------- (None) > --- PROPULSION (2) --- (None) > --- UTILITY (2) ------ Improved Heat Sink Small Storage Unit > --- WEAPON (2) ------- (None) > --- INVENTORY (8) ---- Ion Engine Aluminum Leg Aluminum Leg Compact Wheel Compact Wheel Large Battery (200) Peak State ------------ > --- POWER ------------ Ion Engine > --- PROPULSION ------- Compact Wheel Compact Wheel > --- UTILITY ---------- Improved Heat Sink Small Storage Unit > --- WEAPON ----------- Medium Laser Medium Laser > --- INVENTORY -------- Ion Engine Aluminum Leg Aluminum Leg Compact Wheel Compact Wheel [Rating: 9] Favorites ----------- Power Ion Engine Engine Ion Engine Propulsion Light Treads Treads Light Treads Wheel Compact Wheel Utility Small Storage Unit Device Improved Heat Sink Storage Small Storage Unit Protection Light Armor Plating Weapon Medium Laser Energy Gun Medium Laser Ballistic Gun Light Assault Rifle Build | -11 -10 -10 ------- Run | Yrd Mat Min Slots Evolved . | . . . Power . | . . . Propulsion . | . . . Utility . | . . . Weapon . | . . . Parts Attached 14 | 6 8 . Power 2 | 1 1 . Engine 2 | 1 1 . Core . | . . . Reactor . | . . . Propulsion 4 | 2 2 . Treads 2 | 2 . . Leg . | . . . Wheel 2 | . 2 . Hover . | . . . Flight . | . . . Utility 3 | 1 2 . Device 1 | . 1 . Storage 1 | 1 . . Processor . | . . . Hackware . | . . . Protection 1 | . 1 . Artifact . | . . . Weapon 5 | 2 3 . Energy Gun 4 | 1 3 . Energy Cannon . | . . . Ballistic Gun 1 | 1 . . Ballistic Cannon . | . . . Launcher . | . . . Special Weapon . | . . . Impact Weapon . | . . . Slashing Weapon . | . . . Piercing Weapon . | . . . Special Melee Weapon . | . . . Unidentified Prototypes . | . . . Parts Lost 8 | . 3 5 Power 2 | . 1 1 Propulsion 2 | . . 2 Utility 1 | . 1 . Weapon 3 | . 1 2 Highest Loss Streak 5 | . 2 5 To Critical Strikes . | . . . Average Backups 4 | 2 4 6 Power 1 | . 1 1 Propulsion 2 | 1 2 4 Utility . | . . 1 Weapon . | . . . Tool/Special . | . . . Unused Backups 8 | 1 1 6 Power 1 | . . 1 Propulsion 5 | 1 . 4 Utility 1 | . . 1 Weapon 1 | . 1 . Tool/Special . | . . . Average Slot Usage (%) 96 | . 95 97 Engine 12 | . 12 14 Treads 14 | . 19 . Wheel 13 | . 7 26 Device 6 | . 3 14 Storage 14 | . 14 14 Protection 7 | . 10 . Energy Gun 26 | . 25 27 Ballistic Gun 1 | . 1 . Peak Build Rating 9 | 6 9 9 Average Rating 7 | 5 7 8 On Entrance 5 | . 6 9 Naked Turns . | . . . Heaviest Build 17 | 13 17 15 Greatest Support 40 | 40 40 32 Greatest Overweight (x) 5 | . 5 . Average Overweight (x) . | . . . Largest Inventory Capacity 8 | 8 8 8 Average Capacity 7 | 7 8 8 Most Carried 8 | 4 8 6 Average Carried 4 | 2 5 6 Final Capacity 8 | 8 8 8 Final Carried 6 | 4 6 6 Class Distribution -------------------- 100% | Mutant Dominant Class ---------------- Mutant | -10/Materials Mutant | -10/Mines Resources | -11 -10 -10 ----------- Run | Yrd Mat Min Matter Collected 393 | 183 127 83 Remotely . | . . . Salvage Created 208 | . 162 46 Parts 17 | . 11 6 Haulers Intercepted . | . . . Recyclers Shooed . | . . . Parts Field Recycled . | . . . Retrieved Matter . | . . . Parts Self-Destructed . | . . . Prevented . | . . . Kills | -11 -10 -10 ------- Run | Yrd Mat Min Combat Hostiles Destroyed 8 | . 5 3 Guns 8 | . 5 3 Classes Destroyed 4 | . 4 . Builder 1 | . 1 . Watcher 1 | . 1 . Swarmer 6 | . 3 3 Grunt 2 | . 2 . Best Kill Streak 4 | . 4 3 Combat Bots Only 3 | . 3 3 Max Kills in Single Turn 1 | . 1 1 Gunslinging . | . . . Exploded . | . . . Melee . | . . . Uniques/NPCs Destroyed . | . . . Combat | -11 -10 -10 -------- Run | Yrd Mat Min Hostile Shots Fired 71 | . 51 20 Missed 12 | . 9 3 Hits 59 | . 42 17 Projectile 59 | . 42 17 AOE 6 | . . 6 Critical Strikes 2 | . 2 . Damage Taken 906 | . 566 340 Core 251 | . 138 113 Absorbed by Shields . | . . . Regen/Repaired (Parts) 39 | . 39 . Core Remaining (%) 100 | 100 . . Volleys Fired 30 | . 24 6 Largest 2 | . 2 2 Hottest 100 | . 100 100 Shots Fired 58 | . 47 11 Gun 58 | . 47 11 Cannon . | . . . Launcher . | . . . Special . | . . . Kinetic . | . . . Thermal 58 | . 47 11 Explosive . | . . . Electromagnetic . | . . . Robot Hit Streak 7 | . 7 2 Robot Miss Streak 6 | . 6 3 Penetration Max . | . . . Secondary Targets 3 | . 1 2 Max Gunslinging Chain 1 | . 1 1 Shots Hit Robots 30 | . 25 5 Core Hits 13 | . 10 3 Critical Kills . | . . . Critical Parts Destroyed . | . . . Critical Strikes 2 | . 1 1 Burn 2 | . 1 1 Melee Attacks . | . . . Impact . | . . . Slashing . | . . . Piercing . | . . . Sneak Attacks . | . . . Combat Hostiles . | . . . Follow-up Attacks . | . . . Damage Inflicted 388 | . 326 62 Guns 388 | . 326 62 Cannons . | . . . Explosions . | . . . Melee . | . . . Ramming . | . . . Kinetic . | . . . Thermal 388 | . 326 62 Explosive . | . . . Electromagnetic . | . . . Impact . | . . . Slashing . | . . . Piercing . | . . . Highest Corruption . | . . . Average Corruption . | . . . Corruption Purged . | . . . Corruption Blocked . | . . . Overload Shots . | . . . Overflow Damage . | . . . Projectiles . | . . . Explosions . | . . . Melee . | . . . Knockbacks . | . . . Impact . | . . . Kinetic . | . . . Secondary . | . . . Self-Inflicted Damage . | . . . Shots . | . . . Rammed . | . . . Targets Rammed . | . . . Kicked . | . . . Crushed . | . . . Highest Temperature 557 | . 557 . Average Temperature 235 | . 235 . Received Heat Transfer 237 | . 237 . Effects 10 | . 10 . Shutdowns 2 | . 2 . Energy Bleed 1 | . 1 . Matter Decay 1 | . 1 . Short Circuit 2 | . 2 . Damage (major) 2 | . 2 . Damage (core) 2 | . 2 . Siege Activations . | . . . Martial Activations . | . . . Shielding Activations . | . . . Robots Disrupted . | . . . Combat Hostiles . | . . . Robots Corrupted . | . . . Combat Hostiles . | . . . Parts Fried . | . . . Impact Corruptions . | . . . Robots Melted . | . . . Combat Hostiles . | . . . Parts Melted 3 | . 3 . Heat Transferred 1295 | . 1036 259 Parts Sabotaged . | . . . Parts Stolen . | . . . Parts Stripped . | . . . Power Chain Reactions . | . . . Alert | -11 -10 -10 ------- Run | Yrd Mat Min Maximum Alert Level . | . . . Low Security (%) 100 | 100 100 100 Level 1 . | . . . Level 2 . | . . . Level 3 . | . . . Level 4 . | . . . Level 5 . | . . . High Security . | . . . Max Security . | . . . Peak Influence 90 | . 69 90 Initial 15 | . . 15 Average 11 | . 14 10 Influence Increases 258 | . 158 100 Destroy 0b10 Robot/C 160 | . 100 60 Destroy 0b10 Robot/NC 10 | . 10 . Destroy Leader 32 | . 22 10 Successful Hack 26 | . 26 . Lose Combat Pursuer 30 | . . 30 Influence Decreases 218 | . 117 101 Entered New Map 26 | . . 26 Time Decay 132 | . 107 25 Lost Part 60 | . 10 50 Squads Dispatched . | . . . Investigation . | . . . Extermination . | . . . Reinforcement . | . . . Assault . | . . . Garrison . | . . . Intercept . | . . . Searches Triggered . | . . . Construction Impeded . | . . . Haulers Reinforced . | . . . Active Scanning Responses . | . . . Cargo Convoy Interrupts . | . . . Stealth | -11 -10 -10 --------- Run | Yrd Mat Min Distress Signals 1 | . 1 . Communications Jammed . | . . . Distress Signals . | . . . Times Spotted 18 | . 9 9 Peak Tracking Total 12 | . 4 12 Tactical Retreats 1 | . . 1 Traps | -11 -10 -10 ------- Run | Yrd Mat Min Traps Triggered 1 | . 1 . Indirectly . | . . . Trap Hack Attempts . | . . . Triggered . | . . . Disarmed . | . . . Reprogrammed . | . . . Reused . | . . . Traps Extracted . | . . . Installed . | . . . Triggered . | . . . Machines | -11 -10 -10 ---------- Run | Yrd Mat Min Machines Disabled . | . . . Max in Single Turn . | . . . Machines Repaired . | . . . Machines Dismantled . | . . . Machines Sabotaged . | . . . Overloaded Fab Kills . | . . . Hacking | -11 -10 -10 --------- Run | Yrd Mat Min Machines Accessed 2 | . 2 . Terminals 1 | . 1 . Fabricators . | . . . Repair Stations 1 | . 1 . Recycling Units . | . . . Scanalyzers . | . . . Garrison Access . | . . . Total Hacks 4 | . 4 . Successful 3 | . 3 . Failed 1 | . 1 . Catastrophic . | . . . Database Lockouts . | . . . Manual . | . . . Terminals 1 | . 1 . Fabricators . | . . . Repair Stations 3 | . 3 . Recycling Units . | . . . Scanalyzers . | . . . Garrison Access . | . . . Terminal Hacks 1 | . 1 . Prototype ID Bank 1 | . 1 . Fabricator Hacks . | . . . Repair Station Hacks 2 | . 2 . Scan Component 1 | . 1 . Repair 1 | . 1 . Recycling Unit Hacks . | . . . Scanalyzer . | . . . Garrison Access Hacks . | . . . Unauthorized Hacks . | . . . Terminals . | . . . Fabricators . | . . . Repair Stations . | . . . Recycling Units . | . . . Scanalyzers . | . . . Garrison Access . | . . . Data Cores Recovered . | . . . Used . | . . . Hacking Detections 1 | . 1 . Full Trace Events . | . . . Feedback Events . | . . . Feedback Blocked . | . . . Robot Schematics Acquired . | . . . Robots Built . | . . . Authchips . | . . . Time . | . . . Total Robot Build Rating . | . . . Part Schematics Acquired . | . . . Parts Built . | . . . Authchips . | . . . Time . | . . . Total Part Build Rating . | . . . Parts Repaired 1 | . 1 . Time 13 | . 13 . Parts Recycled . | . . . Recycled Matter . | . . . Retrieved Matter . | . . . Retrieved Components . | . . . Parts Scanalyzed . | . . . Part Schematics Acquired . | . . . Parts Damaged . | . . . Bothacking | -11 -10 -10 ------------ Run | Yrd Mat Min Used RIF Installer . | . . . Robots Hacked . | . . . Non-combat . | . . . Combat . | . . . Robot Hacks Applied . | . . . Relay Couplers Released . | . . . Fabnet Peak Effective % . | . . . Robots Rewired . | . . . Allies Hacked . | . . . Hacks Repelled . | . . . Allies | -11 -10 -10 -------- Run | Yrd Mat Min Total Allies . | . . . Largest Group . | . . . Highest-Rated Group . | . . . Highest-Rated Ally . | . . . Total Orders . | . . . Ally Attacks . | . . . Total Damage . | . . . Kills . | . . . Allies Corrupted . | . . . Allies Melted . | . . . Intel | -11 -10 -10 ------- Run | Yrd Mat Min Active Infowar (turns) . | . . . Robot Analysis Total . | . . . Derelict Logs Recovered 1 | . . 1 Drone Launches . | . . . Drone Recoveries . | . . . Exploration | -11 -10 -10 ------------- Run | Yrd Mat Min Turns Passed 773 | 90 501 182 Spaces Moved 471 | 50 256 165 Core 8 | 4 4 . Treads 215 | 46 169 . Legs . | . . . Wheels 248 | . 83 165 Hover . | . . . Flight . | . . . Fastest Speed 50 | 50 100 100 Average Speed 128 | 151 142 100 Slowest Speed 300 | 160 300 100 Overloaded Moves . | . . . Propulsion Burnouts . | . . . Robots Hopped . | . . . Potential Cave-ins . | . . . Cave-ins Triggered . | . . . Exploration Rate (%) 29 | 4 43 42 Regions Visited 2 Branch Regions 1 Pre-discovered Areas 1 | . . 1 Known Exits Taken . | . . . Unknown Exits Taken 2 | 1 1 . Scrap Searched 1 | . . 1 Spaces Dug . | . . . Terrain Destroyed . | . . . Melee . | . . . Projectile . | . . . AOE . | . . . Terrain Rammed . | . . . Walls Destroyed . | . . . Machines Disabled . | . . . Actions | -11 -10 -10 --------- Run | Yrd Mat Min Total 579 | 63 345 171 Wait 39 | . 39 . Move 469 | 49 255 165 Hop . | . . . Pick Up 18 | 7 11 . Fast Attach 7 | 4 3 . Attach 9 | 2 7 . Detach . | . . . Swap 1 | . 1 . Drop 6 | 1 5 . Fire 30 | . 24 6 Melee . | . . . Ram . | . . . Kick . | . . . Crush . | . . . Escape Stasis . | . . . Rewire . | . . . Trap . | . . . Miscellaneous . | . . . Route ------- -11/Scrapyard -10/Materials (discovered 2 exits: [*Mat] / [*Min]) -10/Mines History --------- Turn | Location | Event 3 | -11/Scrapyard | Discovered new exit (range 16) 91 | -11/Scrapyard | Entered Materials 222 | -10/Materials | Discovered new exit (range 14) 301 | -10/Materials | Build established: Mutant 460 | -10/Materials | Discovered new exit (range 15) 467 | -10/Materials | Core integrity fell below 50% 576 | -10/Materials | Repaired Ion Engine 592 | -10/Materials | Entered Mines 599 | -10/Mines | Learned location of Storage (-8) 710 | -10/Mines | Assembled infested the area 773 | -10/Mines | Core integrity fell below 20% 774 | -10/Mines | Destroyed by D-53 Grenadier with Mini Grenade Launcher Last Messages --------------- dispatching Demolisher response squad. 00723_ as-68956 destroyed. 00726_ as-93087 destroyed. [Achievement: Slippery One] 00730_ K-01 Serf collects debris. 00730_ U-05 Engineer lays Concrete. 00753_ S-10 Pest destroyed. 00753_ Switching to secondary target: S-10 Pest. 00758_ Com. Wheel destroyed. 00759_ S-10 Pest suffers critical hit (Burn). 00759_ S-10 Pest destroyed. 00759_ Switching to secondary target: S-10 Pest. 00762_ S-10 Pest destroyed. 00765_ Acquired 16 matter. 00766_ Acquired 7 matter. 00768_ Med. Laser destroyed. 00768_ T-07 Excavator destroyed. 00770_ Med. Laser destroyed. 00774_ Com. Wheel destroyed. 00774_ Ion Engine destroyed. Map ----- +----------------------------------------------------+ | ??????????????# #????# #?????## #????? | | ??????????????# #????# #??#### #### ##????? | | ??????????????# #??### #?## ##??#####?????? | | ????????????### #??# ### #?????????????? | | ???????????## ##?# !## #?????????????? | | ??????????## ### #### ##?????????????? | | ?????????## ## #??# #??????###?????? | | ?????????# #??## ####### ##????? | | ?????????# """ # #??## #????? | | ?????????# """ ## #??# #????? | | ????????## """ ### #?## ### ##????? | | ???????## ##?# ### ###### ##?????? | | ??????## #??# ##??## ##?????? | | ??????# ### ##??# #???# ##????? | | ??????# ##?###???## #???# #????? | | ?????## ##?????????# ##???# ### #???? | | ?????# #??????????## ##???## ##??# #???? | | ?????# #???????????## ##???## ##????# ##???? | | ?????## ##????????????####???## #??????##????? | | ??????###????????????????????# """ ##???????????? | | ??????????#????????????#####?# """ ###?????????? | | ??????????? ??????##### ### """ ##????????? | | ??????????? ##### | ### #????????? | | ??????????# #### ####### | | ??????????? ##### | | ??????????????????# @ ##?### % | | ??????????????????# ##??# ####### | | ??????????????????### #### #??????? | | ??????????????????# ## ###?????? | | ??????????????????## d #????????# | | ???????????????????## d #???????? | | ????????????????????## ## #???????? | | ????????????????????? ## ## ##???????? | | ???????????????????? ## ##### ##????????? | | ??????????????????? ####### ##???####?????????? | | ?????????????????? #??????## ##?????????????????? | | ?????????????????##????????####??????????????????? | | ?????????????????????????????????????????????????? | | ?????????????????????????????????????????????????? | | ?????????????????????????????????????????????????? | | ?????????????????????????????????????????????????? | | ?????????????????????????????????????????????????? | | | | | | | | | | | | | | | | | +----------------------------------------------------+ Best States ------------- Heat Dissipation 39 Energy Generation 10 Energy Capacity 250 Matter Stores 300 Matter Capacity 300 Sight Range 16 Terrain Scan Density 10 Armor Coverage 150 Evasion (%) 40 Recoil Reduction 2 Item Schematics ----------------- None Robot Schematics ------------------ None Fabricated ------------ Nothing Repaired ---------- Ion Engine | 35% | -10/Materials Alien Tech Used ----------------- None Achievements -------------- Slippery One Challenges ------------ None Game ------ Seed AerolevReflexCannon Manual? 0 Play Time 00:09:00 Cumulative 9.2 hours Start 2025.10.17 @ 19:42:48 End 2025.10.17 @ 19:51:14 Sessions 1 Manual Loads 0 Difficulty Rogue Special Mode None Game No. 16 Rogue 16 Adventurer 0 Explorer 0 Win Type - Total 0 Types 0/0/0/0/0/0/0/0/0/0 Lore% 7 Gallery% 13 Achievement% 14 Wizard Run 0 Options --------- Layout 1 ASCII 0 Keyboard 0 Movement Mouse Keybinds 0 Fullscreen 1 Font 24/X11 Map View 50x35 Zoom Use 0% Tactical HUD 1 Map Filters NONE Filters NONE Steam 1 RUN: d2248de1-876f-46d7-a3e8-7974a1ba6124